bitfinex-derivatives/quotes_ETHF0:USTF0_20251204
["timestamp","ask_amount","ask_price","bid_price","bid_amount"]
[1764883260617,2.0622,3136.8,3136.7,1.18557]
[1764883261315,2.0622,3136.8,3136.7,0.15937]
[1764883261516,2.0622,3136.8,3136.7,2.29687]
[1764883261719,1.0326,3137.0,3136.9,1.0262]
[1764883262012,1.0326,3137.0,3136.7,1.27067]
[1764883262013,0.15936,3136.8,3134.7,3.2078]
[1764883262213,3.2078,3135.6,3135.5,2.7939]
[1764883262418,3.21015395,3135.6,3135.5,2.7939]
[1764883262615,3.21015395,3135.6,3135.5,0.6564]
[1764883262812,0.021,3135.3,3134.5,0.6564]
[1764883263009,3.2288,3135.1,3135.0,0.6564]
[1764883263207,3.2288,3135.1,3135.0,1.6826]
[1764883263410,0.0047792,3135.2,3135.0,1.6826]
[1764883263411,0.0047792,3135.2,3135.1,2.29695]
[1764883264316,0.0152792,3135.2,3135.1,2.26585]
[1764883264814,0.0047792,3135.2,3135.1,2.26585]
[1764883265210,1.77815395,3135.6,3135.5,0.15943]
[1764883265413,1.7758,3135.1,3135.0,0.81585]
[1764883265612,4.9836,3135.1,3135.0,0.15945]
[1764883265808,4.9836,3135.1,3134.5,0.6564]
[1764883266015,45.7836,3135.1,3134.5,0.6564]
[1764883266214,1.7758,3134.6,3134.5,0.6611792]
[1764883266416,1.7758,3134.6,3134.5,0.0047792]
[1764883267014,3.2078,3134.7,3134.6,2.1064]
[1764883267220,3.2078,3134.7,3134.6,2.26588]
[1764883268111,0.00235395,3135.6,3135.1,2.1064]
[1764883268112,3.2078,3135.2,3135.1,2.1064]
[1764883268314,3.21015395,3135.6,3135.1,2.26585]
[1764883268515,1.02595395,3135.6,3135.5,2.1064]
[1764883268714,42.88755395,3135.6,3135.5,1.0443]
[1764883268913,1.0236,3135.4,3135.3,2.26584]
[1764883269518,2.0852,3135.4,3135.3,1.20374]
[1764883271919,44.01015395,3135.6,3135.5,3.05613]
[1764883271920,3.21015395,3135.6,3135.5,3.05613]
[1764883273320,0.00235395,3135.6,3135.5,3.05613]
[1764883273524,0.0047792,3135.7,3135.6,2.26583]
[1764883274520,0.00885622,3135.7,3135.6,2.26812921]
[1764883278031,5.293,3136.5,3136.4,2.26578]
[1764883279023,5.29617549,3136.5,3136.4,2.26578]
[1764883279219,3.21097549,3136.5,3136.4,2.26578]
[1764883280027,0.00317549,3136.5,3136.4,2.26578]
[1764883280532,6.08867549,3136.5,3136.4,0.15938]
[1764883281125,2.0852,3136.2,3136.1,0.0047792]
[1764883283635,2.0852,3136.2,3136.1,1.2084792]
[1764883283937,2.0852,3136.2,3136.1,0.1641792]
[1764883284829,2.0852,3136.2,3136.1,0.0047792]
[1764883286643,42.8852,3136.2,3136.1,0.0047792]
[1764883286834,55.5382,3136.2,3136.1,0.0047792]
[1764883288140,55.5362,3136.2,3136.1,0.1641792]
[1764883289037,1.0616,3135.1,3135.0,0.15945]
[1764883289242,5.293,3135.1,3135.0,0.15945]
[1764883289930,5.293,3135.1,3135.0,0.1626866]
[1764883290637,5.293,3135.1,3134.7,0.0047792]
[1764883290638,2.0852,3134.8,3133.8,0.15951]
[1764883290838,1.0236,3134.0,3133.9,2.26591]
[1764883291033,2.0852,3133.6,3133.5,4.512595]
[1764883291335,40.8,3133.9,3133.5,3.157195]
[1764883291640,1.0236,3133.8,3133.7,2.1064]
[1764883291849,2.0852,3133.7,3133.6,0.15953]
[1764883292032,1.02768738,3133.7,3133.6,2.26876758]
[1764883292237,2.08928738,3133.7,3133.6,0.16236758]
[1764883293336,2.08928738,3133.7,3133.6,2.26876758]
[1764883293337,1.02768738,3133.7,3133.6,2.26876758]
[1764883293536,0.00408738,3133.7,3133.6,2.26876758]
[1764883293737,1.14238932,3134.8,3134.2,0.15949]
[1764883293738,3.2078,3134.8,3134.2,0.15949]
[1764883294134,3.2078,3134.8,3134.2,2.99719]
[1764883294336,2.6197,3134.3,3134.2,0.15949]
[1764883294648,0.0031173,3134.3,3133.7,2.8377]
[1764883294847,0.0079042,3134.3,3133.7,2.8377]
[1764883295142,1.3269,3133.8,3133.7,2.99722]
[1764883295536,1.3348042,3134.3,3134.2,1.4232]
[1764883295738,2.6197,3134.0,3133.9,0.15951]
[1764883295947,2.6197,3134.0,3133.9,1.58271]
[1764883296244,5.8275,3134.0,3133.9,0.15951]
[1764883297536,1.3269,3133.7,3133.6,1.42603758]
[1764883297736,12.684,3134.2,3133.9,2.8377]
[1764883298243,0.0079042,3134.3,3133.9,2.99721]
[1764883298444,1.3269,3134.0,3133.9,2.99721]
[1764883298841,0.0079042,3134.3,3134.2,2.9972]
[1764883299043,0.0079042,3134.3,3134.2,6.205]
[1764883299244,3.2078,3134.8,3134.7,2.99717]
[1764883299555,5.8275,3134.8,3134.7,0.15947]
[1764883299940,5.8275,3134.8,3134.0,0.8239]
[1764883299941,1.3269,3134.1,3134.0,2.99721]
[1764883300153,1.32956566,3134.1,3134.0,2.99721]
[1764883300556,0.00266566,3134.1,3134.0,2.99721]
[1764883301159,0.00266566,3134.1,3134.0,3.82111]
[1764883301758,3.2078,3134.8,3134.7,2.8377]
[1764883302255,4.5347,3134.8,3134.7,2.8377]
[1764883302953,3.21163927,3134.8,3134.7,2.8377]
[1764883303143,3.21163927,3134.8,3134.7,2.99717]
[1764883303951,4.56403927,3134.8,3134.7,2.99717]
[1764883304457,3.21163927,3134.8,3134.7,2.99717]
[1764883304748,0.0047869,3135.1,3135.0,3.5856]
[1764883305750,0.00815873,3135.1,3135.0,3.5856]
[1764883305958,1.3524,3135.0,3134.9,1.55306]
[1764883306257,2.6925,3135.0,3134.9,1.55306]
[1764883306657,1.3524,3135.0,3134.9,2.97466]
[1764883307156,0.00815873,3135.1,3135.0,3.5856]
[1764883308554,0.00815873,3135.1,3135.0,3.74506]
[1764883308949,0.00815873,3135.1,3135.0,0.92986]
[1764883309160,1.36055873,3135.1,3135.0,1.55306]
[1764883309362,2.70065873,3135.1,3135.0,0.15946]
[1764883309753,2.70065873,3135.1,3135.0,1.55306]
[1764883312055,2.70065873,3135.1,3135.0,2.97466]
[1764883312261,1.36055873,3135.1,3135.0,2.97466]
[1764883313360,1.3524,3134.5,3134.4,6.18249]
[1764883313557,2.6925,3134.7,3134.6,0.15947]
[1764883314062,2.6925,3134.7,3134.6,1.55307]
[1764883314562,2.6925,3134.7,3134.6,2.97467]
[1764883314863,1.3524,3134.7,3134.6,2.97467]
[1764883315061,2.6925,3134.7,3134.6,2.97467]
[1764883315864,5.9003,3134.7,3134.6,2.97467]
[1764883316556,5.9003,3134.7,3134.6,1.55307]
[1764883316762,5.9003,3134.7,3134.6,0.15947]
[1764883316964,5.9003,3134.7,3134.6,1.55307]
[1764883317766,3.2078,3134.7,3134.6,2.97467]
[1764883319360,4.5602,3134.7,3134.6,2.97467]
[1764883321157,2.6925,3134.4,3134.3,3.65222199]
[1764883321463,3.2078,3134.7,3134.0,0.8239]
[1764883321760,5.9003,3134.7,3134.6,1.3936]
[1764883321967,5.9003,3134.7,3134.2,0.15949]
[1764883322468,5.9003,3134.7,3134.3,0.15949]
[1764883323671,3.2078,3134.7,3134.6,2.97468]
[1764883323965,4.5602,3134.7,3134.6,2.97468]
[1764883324663,3.2078,3134.7,3134.6,2.97468]
[1764883324862,0.00815873,3135.1,3135.0,3.57986]
[1764883325058,0.00815873,3135.1,3134.4,5.63576189]
[1764883325059,2.7151,3134.6,3134.4,5.63576189]
[1764883325263,5.9229,3134.5,3134.4,0.15949]
[1764883326870,5.9229,3134.5,3134.4,2.85519]
[1764883327561,5.9229,3134.5,3134.4,1.48319]
[1764883327757,4.6161,3134.5,3134.4,2.85519]
[1764883328669,3.2078,3134.5,3134.4,2.85519]
[1764883328872,4.6161,3134.5,3134.4,2.85519]
[1764883331470,40.8,3134.9,3134.5,0.7247]
[1764883331674,1.4083,3134.9,3134.8,2.6957]
[1764883331865,3.2078,3135.0,3134.9,2.85516]
[1764883332066,5.9229,3135.0,3134.9,2.85516]
[1764883332570,4.6161,3135.0,3134.9,2.85516]
[1764883334074,3.2078,3135.0,3134.9,2.85516]
[1764883334368,4.6161,3135.0,3134.9,2.85516]
[1764883336169,6.1312,3135.0,3134.9,0.15946]
[1764883336373,4.6161,3135.0,3134.9,2.85516]
[1764883337074,5.9229,3135.0,3134.9,2.85516]
[1764883337571,5.9229,3135.0,3134.9,1.48316]
[1764883339470,4.6161,3135.0,3134.9,2.85516]
[1764883339874,5.9229,3135.0,3134.9,2.85516]
[1764883344778,2.7151,3135.0,3134.9,2.85516]
[1764883345071,3.21595873,3135.1,3135.0,3.57986]
[1764883345677,4.6161,3135.5,3135.4,1.3237]
[1764883345882,1.4083,3135.5,3135.4,2.6957]
[1764883346071,1.3068,3135.7,3135.6,2.6957]
[1764883346276,2.7151,3135.7,3135.6,2.6957]
[1764883346485,2.7151,3135.7,3135.2,2.26847189]
[1764883346677,2.71784709,3135.7,3135.2,2.26847189]
[1764883347384,2.71784709,3135.7,3135.6,1.48313]
[1764883347772,0.00274709,3135.7,3135.6,2.85513]
[1764883347971,0.0047869,3135.8,3135.7,2.85512]
[1764883348980,0.00715123,3135.8,3135.7,2.85512]
[1764883349285,1.41545123,3135.8,3135.7,2.85512]
[1764883351277,2.72225123,3135.8,3135.7,0.15942]
[1764883351785,2.7151,3135.3,3135.2,3.2078]
[1764883352177,2.7151,3135.2,3135.1,0.0047869]
[1764883352378,2.7151,3135.2,3134.6,3.2078]
[1764883352379,2.7151,3134.7,3134.6,3.2078]
[1764883352781,2.7151,3134.6,3134.5,0.15948]
[1764883354292,2.4123,3134.5,3134.4,1.2696]
[1764883354486,1.205,3134.5,3134.4,2.69679]
[1764883354679,2.4123,3134.7,3134.6,2.69678]
[1764883354884,2.4123,3134.7,3134.6,0.15948]
[1764883355083,2.4123,3134.7,3134.6,1.42908]
[1764883355279,2.4123,3134.7,3134.6,0.15948]
[1764883355582,2.4123,3134.7,3134.6,1.42908]
[1764883355982,3.2078,3135.3,3134.8,2.69676]
[1764883356794,1.205,3135.0,3134.9,2.69676]
[1764883358394,2.4123,3135.0,3134.9,2.69676]
[1764883358794,1.205,3135.0,3134.9,2.69676]
[1764883359297,2.4123,3135.0,3134.9,2.69676]
[1764883359493,1.205,3135.0,3134.9,2.69676]
[1764883359992,2.4123,3135.0,3134.9,0.15946]
[1764883360193,3.1799,3135.0,3134.9,0.15946]
[1764883360890,3.2078,3135.3,3134.9,2.69676]
[1764883361088,2.4123,3135.1,3135.0,2.5373]
[1764883361288,2.4123,3135.0,3134.9,0.15946]
[1764883361796,2.4123,3135.0,3134.9,1.42906]
[1764883362296,2.4123,3135.0,3134.9,0.15946]
[1764883362599,2.4123,3134.7,3134.6,3.2078]
[1764883363093,2.4123,3134.7,3134.6,4.4774]
[1764883364588,2.4123,3134.7,3134.6,3.2078]
[1764883364800,2.4123,3134.7,3134.6,4.4325]
[1764883368396,1.2446,3135.0,3134.9,2.61396]
[1764883368587,2.508,3135.0,3134.9,2.61396]
[1764883368797,2.508,3135.0,3134.9,1.38416]
[1764883368998,3.2579,3135.0,3134.9,0.15946]
[1764883370206,3.2579,3135.0,3134.9,1.38416]
[1764883370409,3.2078,3135.3,3134.9,2.61396]
[1764883370706,5.7158,3135.3,3135.2,1.2247]
[1764883370897,2.508,3135.1,3135.0,3.40775]
[1764883371094,1.2446,3135.1,3135.0,3.40775]
[1764883371708,3.2078,3135.3,3135.2,2.61395]
[1764883371899,4.4524,3135.3,3135.2,2.61395]
[1764883372096,5.7158,3135.3,3135.2,2.61395]
[1764883372908,4.4524,3135.3,3135.2,2.61395]
[1764883373699,5.7158,3135.7,3135.6,2.4545]
[1764883374009,5.7158,3135.7,3135.6,1.2247]
[1764883374403,5.7158,3135.7,3135.4,0.15944]
[1764883374404,2.508,3135.5,3135.4,2.61394]
[1764883375511,5.7158,3135.7,3135.6,2.61393]
[1764883375809,5.7158,3135.7,3135.6,0.15943]
[1764883377907,2.508,3135.1,3135.0,6.61556]
[1764883378810,5.7158,3135.3,3135.2,2.61395]
[1764883382328,5.7158,3135.3,3135.2,0.15945]
[1764883382807,2.508,3134.6,3134.5,2.42795189]
[1764883383000,2.508,3134.6,3134.5,0.15948]
[1764883384307,43.308,3134.6,3134.5,0.15948]
[1764883386106,2.5406,3134.3,3134.2,3.2078]
[1764883388012,15.1976,3134.3,3134.2,5.8379]
[1764883388209,40.8,3134.6,3134.5,1.3064]
[1764883388412,15.2786,3134.6,3134.5,1.3064]
[1764883388613,14.4856,3134.6,3134.5,1.3064]
[1764883389316,14.4856,3134.6,3134.2,3.3673]
[1764883389317,1.3256,3134.3,3134.2,5.9974]
[1764883389518,2.6216,3134.3,3134.2,5.9974]
[1764883390818,2.6216,3134.3,3134.2,4.6737]
[1764883391014,2.6216,3134.3,3134.2,3.3673]
[1764883391219,2.6216,3134.3,3134.2,5.9974]
[1764883391416,2.6216,3134.3,3134.2,3.3673]
[1764883391919,2.6216,3134.3,3134.2,3.2078]
[1764883394923,2.6216,3133.9,3133.8,2.6348869]
[1764883395116,2.6263869,3134.2,3134.1,2.6301]
[1764883395320,15.2863869,3134.2,3134.1,1.3064]
[1764883397620,2.6216,3133.9,3133.8,0.1643069]
[1764883397821,2.6216,3133.9,3133.8,2.7944069]
[1764883398727,2.6216,3133.9,3133.8,0.1643069]
[1764883398933,5.8294,3133.9,3133.8,0.1643069]
[1764883399233,5.8294,3133.9,3133.8,0.0047869]
[1764883399618,2.6216,3133.7,3133.6,0.00283758]
[1764883399818,15.2776,3133.7,3133.6,0.00283758]
[1764883400319,13.9826,3133.7,3133.6,2.63293758]
[1764883400523,15.2786,3133.7,3133.6,2.63293758]
[1764883400919,1.3256,3133.7,3133.6,2.63293758]
[1764883401119,0.2579,3134.0,3133.6,2.63293758]
[1764883401120,15.2786,3134.0,3133.9,2.6301]
[1764883401325,2.6216,3134.0,3133.9,2.6301]
[1764883402025,2.6216,3134.0,3133.9,1.3064]
[1764883402225,2.6263869,3134.2,3134.1,2.6301]
[1764883402421,0.0047869,3134.2,3134.1,2.6301]
[1764883402826,1.3303869,3134.2,3134.1,2.6301]
[1764883403431,2.6263869,3134.2,3134.1,2.6301]
[1764883404228,0.0047869,3134.2,3134.0,1.3064]
[1764883404420,2.6216,3134.0,3133.9,1.4659]
[1764883404615,1.3256,3134.0,3133.9,2.7896]
[1764883405427,2.6263869,3134.2,3134.1,2.6301]
[1764883405827,0.0047869,3134.2,3134.1,2.78959]
[1764883406029,3.2078,3134.7,3134.6,2.6301]
[1764883406330,15.8668,3135.2,3134.7,2.6301]
[1764883407033,2.6216,3134.8,3134.7,2.6301]
[1764883407531,1.3256,3134.8,3134.7,2.6301]
[1764883408232,2.6216,3134.8,3134.7,2.6301]
[1764883408627,0.0047869,3135.1,3135.0,3.3487]
[1764883415840,1.3303869,3135.1,3135.0,3.3487]
[1764883416241,0.0047869,3135.1,3135.0,3.3487]
[1764883416639,0.6426,3135.0,3134.3,3.36727]
[1764883416843,2.3358,3134.4,3134.3,3.36727]
[1764883417043,2.3358,3134.4,3134.3,4.59837]
[1764883417245,2.3358,3134.4,3134.3,4.4389]
[1764883417844,2.3358,3134.4,3134.3,3.2078]
[1764883419938,55.1148,3134.4,3134.3,3.2078]
[1764883420139,2.3358,3134.0,3133.9,2.5335]
[1764883420540,2.3358,3134.0,3133.9,0.1595]
[1764883420935,2.3358,3134.0,3133.9,1.3906]
[1764883421341,2.3358,3133.8,3133.7,1.2311]
[1764883421941,2.3358,3133.8,3133.6,0.00283758]
[1764883422247,2.3358,3133.7,3133.6,0.00283758]
[1764883423543,2.3358,3133.7,3133.6,1.23393758]
[1764883423943,2.3358,3133.7,3133.6,2.48163758]
[1764883424245,3.2078,3134.0,3133.9,2.4663]
[1764883425242,4.3581,3134.0,3133.9,2.4663]
[1764883425841,5.5096,3134.0,3133.9,2.4663]
[1764883426148,2.3018,3133.9,3133.8,2.6258]
[1764883426750,1.1503,3133.9,3133.8,2.6258]
[1764883428344,4.3581,3133.9,3133.8,2.6258]
[1764883430251,3.2078,3133.9,3133.8,2.6258]
[1764883432642,14.9578,3134.1,3134.0,2.4663]
[1764883432846,18.1656,3134.1,3134.0,2.4663]
[1764883433047,18.1656,3134.1,3134.0,3.1845]
[1764883433244,4.3581,3134.1,3134.0,3.1845]
[1764883433851,3.2078,3134.1,3134.0,3.34399]
[1764883434053,5.5096,3134.6,3134.5,2.4663]
[1764883434263,7.2956,3134.6,3134.5,3.1845]
[1764883434755,7.2956,3134.6,3134.5,2.4663]
[1764883435155,7.2956,3134.6,3134.5,1.2186]
[1764883436458,5.5096,3134.6,3134.5,2.4663]
[1764883436847,5.5096,3134.6,3134.5,1.2186]
[1764883437565,5.5096,3134.6,3134.5,2.4663]
[1764883438055,2.3018,3134.6,3134.5,2.4663]
[1764883438257,5.5096,3134.6,3134.5,2.4663]
[1764883438564,2.3018,3134.4,3134.3,1.37807]
[1764883439866,2.3018,3134.4,3134.3,0.15947]
[1764883440160,2.3018,3134.4,3133.5,6.19447189]
[1764883440161,1.52649032,3134.4,3133.5,6.19447189]
[1764883440358,5.5096,3134.0,3133.9,2.4663]
[1764883444261,3.2078,3134.0,3133.9,2.6258]
[1764883444462,5.6549,3134.4,3134.3,2.436]
[1764883444965,3.2078,3134.4,3134.3,4.12197032]
[1764883445663,1.2035,3134.6,3134.5,3.0985]
[1764883446057,5.6549,3135.0,3134.9,2.436]
[1764883446260,5.6549,3135.0,3134.9,1.2025]
[1764883446967,4.4113,3135.0,3134.9,2.436]
[1764883447162,5.6549,3135.0,3134.9,2.436]
[1764883447476,4.73429032,3135.0,3134.5,0.82197]
[1764883447666,4.4113,3135.0,3134.9,2.436]
[1764883447969,5.6549,3135.0,3134.9,2.436]
[1764883449860,3.2078,3135.0,3134.6,0.15946]
[1764883450065,2.4471,3134.7,3134.6,1.36196]
[1764883450460,2.4471,3134.7,3134.6,2.59546]
[1764883451269,1.2035,3134.7,3134.6,2.59546]
[1764883451672,2.4471,3134.7,3134.6,2.59546]
[1764883452974,1.2035,3134.7,3134.6,2.59546]
[1764883453168,2.4471,3134.7,3134.6,2.59546]
[1764883453875,1.2035,3134.7,3134.6,2.59546]
[1764883454174,2.4471,3134.7,3134.6,2.59546]
[1764883455174,1.2035,3134.7,3134.6,2.59546]
[1764883457074,2.4471,3134.7,3134.6,2.59546]
[1764883457476,2.4471,3134.3,3134.2,4.70447189]
[1764883457676,2.4471,3134.2,3134.1,0.15948]
[1764883457876,2.4471,3134.2,3134.1,1.36198]
[1764883458578,2.4471,3134.2,3134.1,0.15948]
[1764883458972,2.4471,3134.2,3134.1,1.36198]
[1764883460177,2.4471,3134.2,3134.1,0.15948]
[1764883461275,2.4471,3134.2,3134.1,1.36198]
[1764883462381,2.4471,3134.2,3134.1,2.59548]
[1764883463783,0.6448,3134.5,3134.1,2.59548]
[1764883463784,2.4471,3134.5,3134.4,1.2025]
[1764883463983,15.1001,3134.5,3134.4,1.2025]
[1764883465194,2.4471,3134.5,3134.4,1.2025]
[1764883465396,2.4471,3134.5,3134.4,2.59547]
[1764883466200,2.4471,3134.5,3134.4,1.36197]
[1764883467790,15.1001,3134.5,3134.4,1.36197]
[1764883468693,15.1001,3134.5,3134.4,2.59547]
[1764883469197,15.1001,3134.5,3134.4,1.36197]
[1764883469695,15.7449,3134.5,3134.4,0.15947]
[1764883469895,15.7449,3134.5,3134.4,1.36197]
[1764883470090,15.7449,3134.5,3134.4,0.15947]
[1764883472494,15.7449,3134.5,3134.4,1.36197]
[1764883472702,15.1001,3134.5,3134.4,1.36197]
[1764883472898,15.1001,3134.5,3134.4,2.59547]
[1764883473300,2.4471,3134.5,3134.4,2.59547]
[1764883473599,15.1001,3134.5,3134.4,2.59547]
[1764883474097,3.6818,3135.0,3134.4,0.15947]
[1764883474399,1.1096,3134.5,3134.4,2.35487]
[1764883474800,2.1968,3134.5,3134.4,2.35487]
[1764883476703,2.8575,3134.5,3134.4,0.15947]
[1764883477490,2.1968,3134.1,3134.0,3.36027189]
[1764883477696,2.1968,3134.0,3133.9,3.51976189]
[1764883479004,2.1968,3134.0,3133.9,1.25129]
[1764883481208,2.1968,3133.7,3133.6,0.00283758]
[1764883482099,14.8498,3133.7,3133.6,0.00283758]
[1764883482601,2.1968,3133.7,3133.6,0.00283758]
[1764883482802,14.8498,3133.7,3133.6,0.00283758]
[1764883484609,5.4953,3134.1,3134.0,2.1819]
[1764883484803,5.4953,3134.1,3134.0,2.879]
[1764883485605,5.4953,3134.1,3134.0,1.0907]
[1764883486207,5.4953,3134.1,3134.0,2.1819]
[1764883486606,5.4953,3134.1,3134.0,2.879]
[1764883488908,1.1365,3134.0,3133.9,0.15949]
[1764883489112,2.2875,3134.0,3133.9,2.34139]
[1764883489502,2.2875,3134.0,3133.9,1.25019]
[1764883494514,1.1365,3134.0,3133.9,2.34139]
[1764883494722,2.2875,3134.0,3133.9,2.34139]
[1764883495615,1.1365,3134.0,3133.9,2.34139]
[1764883497218,1.7972,3134.5,3134.4,1.0907]
[1764883497418,15.6012,3134.5,3134.4,1.0907]
[1764883498015,15.6012,3134.5,3134.0,0.85659]
[1764883498423,2.9482,3134.5,3134.0,0.85659]
[1764883498620,14.9405,3134.4,3134.3,1.0907]
[1764883498822,14.9405,3134.4,3134.3,2.1819]
[1764883499023,5.4953,3134.6,3134.5,2.1819]
[1764883499229,2.2875,3134.4,3134.3,2.34138]
[1764883499414,5.4953,3135.0,3134.9,1.0907]
[1764883499619,6.1446,3135.0,3134.9,1.0907]
[1764883499819,6.1446,3135.0,3134.6,0.15946]
[1764883499820,2.2875,3134.7,3134.6,2.34136]
[1764883500122,2.2875,3134.2,3134.1,2.26847189]
[1764883500425,2.2875,3133.9,3133.8,2.26847189]
[1764883500622,2.2875,3133.7,3133.6,6.56980947]
[1764883500822,2.2875,3133.7,3133.6,3.21063758]
[1764883502027,2.2875,3133.7,3133.6,0.00283758]
[1764883502218,5.4953,3133.7,3133.6,0.00283758]
[1764883503734,18.1473,3133.7,3133.6,1.09353758]
[1764883504432,18.1473,3133.7,3133.6,0.00283758]
[1764883510427,2.212,3133.4,3133.3,0.1643069]
[1764883511335,2.21429078,3133.4,3133.3,1.32567533]
[1764883511531,2.21429078,3133.4,3133.3,0.16717533]
[1764883512231,0.00229078,3133.4,3133.3,2.41347533]
[1764883512431,12.65529078,3133.4,3133.3,5.62127533]
[1764883512833,13.78709078,3133.4,3133.3,5.62127533]
[1764883517144,14.86729078,3133.4,3133.3,5.62127533]
[1764883517339,14.86729078,3133.4,3133.3,2.41347533]
[1764883518441,14.86729078,3133.4,3133.3,0.16717533]
[1764883518644,2.8444,3133.0,3132.9,2.26847189]
[1764883518846,2.212,3132.8,3132.7,2.26847189]
[1764883519051,2.212,3132.6,3132.5,3.2078]
[1764883519349,13.521,3132.6,3132.5,3.2078]
[1764883519747,13.521,3132.6,3132.5,3.21083866]
[1764883520342,13.521,3132.6,3132.5,0.00303866]
[1764883520644,54.321,3132.6,3132.5,0.00303866]
[1764883521340,55.664,3132.6,3132.5,0.00303866]
[1764883521548,43.012,3132.6,3132.5,0.00303866]
[1764883521749,55.664,3132.6,3132.5,0.00303866]
[1764883521954,43.012,3132.6,3132.5,0.00303866]
[1764883522252,55.665,3132.6,3132.5,0.00303866]
[1764883524152,43.012,3132.6,3132.5,0.00303866]
[1764883524352,55.665,3132.6,3132.5,0.00303866]
[1764883525356,55.665,3132.6,3132.3,0.15958]
[1764883525357,2.212,3132.4,3132.3,0.15958]
[1764883526243,2.212,3132.4,3132.3,0.16256629]
[1764883526849,2.212,3132.3,3132.2,0.0047869]
[1764883527049,1.1318,3131.8,3131.7,2.40591]
[1764883527551,2.212,3131.8,3131.7,2.40591]
[1764883527951,2.212,3131.8,3131.7,2.40996817]
[1764883529459,13.7858,3131.9,3131.8,2.4059]
[1764883529765,3.2078,3132.7,3132.5,1.1585]
[1764883529954,53.455,3132.6,3132.5,1.1585]
[1764883530265,2.212,3132.1,3132.0,6.0648]
[1764883530458,2.212,3132.1,3132.0,6.22439]
[1764883530663,0.5572,3132.5,3132.0,6.22439]
[1764883531365,1.1318,3132.1,3132.0,6.22439]
[1764883532964,0.5572,3132.5,3132.0,6.22439]
[1764883533563,1.0802,3132.5,3132.4,2.2463]
[1764883533765,2.212,3132.5,3132.4,1.1585]
[1764883534765,2.1353,3132.4,3132.3,1.25818]
[1764883535660,2.1353,3132.4,3132.3,0.15958]
[1764883536667,2.1353,3132.4,3132.3,1.25818]
[1764883537867,2.1353,3132.4,3132.3,0.15958]
[1764883545371,1.0469,3132.4,3132.3,2.15888]
[1764883545767,1.9988,3132.4,3132.3,2.15888]
[1764883546174,11.6498,3132.4,3132.3,1.25818]
[1764883546476,1.0469,3132.4,3132.3,1.95918]
[1764883546670,14.6538,3132.4,3132.3,1.95918]
[1764883546972,14.6538,3132.4,3132.3,1.05848]
[1764883547175,14.6538,3132.4,3132.3,0.15958]
[1764883549477,1.8705,3132.1,3132.0,2.26847189]
[1764883549878,1.8705,3132.1,3132.0,3.32696189]
[1764883550675,1.8705,3132.1,3132.0,0.15959]
[1764883550880,1.8705,3132.1,3132.0,1.05849]
[1764883552372,1.8705,3131.9,3131.8,2.26847189]
[1764883552682,1.8705,3131.8,3131.7,0.00405817]
[1764883553476,14.5245,3131.8,3131.7,0.00405817]
[1764883554370,1.8705,3131.6,3131.5,0.15962]
[1764883554572,0.5652,3131.5,3131.1,0.8989]
[1764883554874,1.52889789,3131.6,3131.1,1.95924]
[1764883555068,46.4675,3131.5,3131.4,1.7996]
[1764883555268,17.7333,3131.7,3131.6,1.7996]
[1764883555475,17.7333,3131.7,3131.6,1.80295509]
[1764883555679,17.7333,3131.7,3131.6,0.90225509]
[1764883555876,58.5333,3131.7,3131.6,0.90225509]
[1764883556180,58.5333,3131.7,3131.6,0.00335509]
[1764883556878,58.5333,3131.7,3131.6,0.90225509]
[1764883557177,45.8783,3131.7,3131.6,1.80295509]
[1764883557679,58.5333,3131.7,3131.6,1.96256509]
[1764883558282,17.7333,3131.7,3131.6,1.96256509]
[1764883558482,17.7333,3131.7,3131.6,1.06186509]
[1764883558980,17.7333,3131.7,3131.6,1.96256509]
[1764883559168,17.7333,3131.7,3131.6,1.06186509]
[1764883560275,17.7333,3131.7,3131.6,0.16296509]
[1764883560483,17.7333,3131.7,3131.6,1.06186509]
[1764883560780,17.7333,3131.7,3131.6,0.16296509]
[1764883562075,17.7333,3131.7,3131.6,0.00335509]
[1764883564179,17.7333,3131.7,3131.6,0.90225509]
[1764883564485,17.7333,3131.7,3131.6,0.00335509]
[1764883564677,5.0783,3131.7,3131.6,0.00335509]
[1764883564877,17.7333,3131.7,3131.6,0.00335509]
[1764883569183,1.861,3131.4,3131.3,0.1644169]
[1764883569486,16.04489789,3131.4,3131.3,1.0655169]
[1764883569686,16.04489789,3131.4,3131.3,0.1644169]
[1764883570183,16.04489789,3131.4,3131.0,3.2078]
[1764883570488,1.861,3130.7,3130.6,3.2078]
[1764883570683,1.86373901,3130.7,3130.6,5.06050551]
[1764883570988,41.76813901,3130.7,3130.6,5.22016551]
[1764883571188,41.76813901,3130.7,3130.6,2.01236551]
[1764883571384,0.96813901,3130.7,3130.6,2.01236551]
[1764883571690,5.97273901,3130.7,3130.6,2.01236551]
[1764883572184,0.00273901,3130.7,3130.6,2.01236551]
[1764883572383,0.00273901,3130.7,3130.6,6.7490634]
[1764883572586,0.00273901,3130.7,3130.6,9.01753529]
[1764883573084,0.0047869,3131.0,3130.9,2.00995]
[1764883573289,0.0047869,3131.0,3130.9,3.53884789]
[1764883574180,0.00883077,3131.0,3130.9,5.81651106]
[1764883577393,0.00883077,3131.0,3130.9,3.53884789]
[1764883577581,0.00883077,3131.0,3130.9,2.00995]
[1764883579185,3.2078,3131.5,3131.4,1.8503]
[1764883580092,3.21188037,3131.5,3131.4,1.8503]
[1764883580390,3.21188037,3131.5,3131.4,2.00992]
[1764883581884,0.0047869,3131.8,3131.7,2.00991]
[1764883582087,3.2078,3132.3,3132.2,0.9011]
[1764883582282,1.861,3132.1,3132.0,2.51999]
[1764883582688,1.86345416,3132.1,3132.0,2.51999]